[Event "Montenegro Festival Mix-01 2021"]
[Site "Podgorica"]
[Date "2021.03.24"]
[Round "8.1"]
[White "Sanal, Vahap"]
[Black "Blagojevic, Dragisa"]
[Result "1-0"]
[ECO "C96"]
[WhiteElo "2571"]
[BlackElo "2489"]
[Annotator "RC"]
[PlyCount "137"]
[EventDate "2021.02.26"]
[EventType "swiss"]
[EventCountry "MNE"]
[SourceTitle "playchess.com"]
[Source "ChessBase"]
[SourceQuality "1"]
[TimeControl "40/5400+30:900+30"]

1. e4 {[%emt 0:00:57]} e5 {[%emt 0:00:00]} 2. Nf3 {[%emt 0:00:21]} Nc6 {[%emt 0:00:00]} 3. Bb5 {[%emt 0:00:11]} a6 {[%emt 0:00:03]} 4. Ba4 {[%emt 0:00:06]} Nf6 {[%emt 0:00:08]} 5. O-O {[%emt 0:00:18]} Be7 {[%emt 0:00:08]} 6. Re1 {[%emt 0:00:18]} b5 {[%emt 0:00:20]} 7. Bb3 {[%emt 0:00:10]} d6 {[%emt 0:00:09]} 8. c3 {[%emt 0:00:06]} O-O {[%emt 0:00:05]} 9. h3 {[%emt 0:00:06]} Na5 {[%emt 0:02:15]} 10. Bc2 {[%emt 0:01:11]} c5 {[%emt 0:01:45]} 11. d4 {[%emt 0:00:08]} Nd7 {[%emt 0:00:05]} 12. d5 {[%emt 0:00:35]} Nb6 {[%emt 0:00:46]} 13. b3 {[%emt 0:08:34]} f5 {[%emt 0:01:10]} 14. exf5 {[%emt 0:10:08]} Bxf5 {[%emt 0:00:07]} 15. Bxf5 {[%emt 0:05:46]} Rxf5 {[%emt 0:00:07]} 16. Na3 {[%emt 0:00:59]} Qd7 {[%emt 0:04:31]} 17. Re4 {[%emt 0:02:32]} Raf8 {[%emt 0:04:20]} 18. c4 {[%emt 0:13:24]} Rxf3 {[%emt 0:22:39]} 19. gxf3 {[%emt 0:00:46]} Qxh3 {[%emt 0:00:12]} 20. Qf1 {[%emt 0:17:07]} Qxf3 {[%emt 0:03:03]} 21. Qe2 {[%emt 0:01:30]} Qh3 {[%emt 0:13:11]} 22. Qg4 {[%emt 0:02:21]} Qc3 {[%emt 0:08:49]} 23. Rb1 {[%emt 0:01:46]} Rf6 {[%emt 0:18:01]} 24. Re3 {[%emt 0:12:36]} Qd4 {[%emt 0:00:06]} 25. Qxd4 {[%emt 0:00:06]} cxd4 {[%emt 0:00:03]} 26. Rg3 {[%emt 0:00:11]} bxc4 {[%emt 0:07:21]} 27. bxc4 {[%emt 0:00:19]} Nd7 {[%emt 0:00:58]} 28. Bd2 {[%emt 0:02:27]} Bd8 {[%emt 0:00:07]} 29. Rb4 {[%emt 0:02:02]} Nc5 {[%emt 0:03:32]} 30. Rb8 {[%emt 0:00:49]} Nab7 {[%emt 0:00:13]} 31. Rb3 {[%emt 0:04:30]} Nxb3 {[%emt 0:01:43]} 32. axb3 {[%emt 0:00:02]} Rf7 {[%emt 0:00:20]} 33. c5 {[%emt 0:00:32]} dxc5 {[%emt 0:05:11]} 34. Nc4 {[%emt 0:00:03]} Rd7 {[%emt 0:01:07]} 35. d6 {[%emt 0:01:22]} h6 {[%emt 0:00:43]} 36. Nxe5 {[%emt 0:00:27]} Rxd6 {[%emt 0:00:10]} 37. Rxb7 {[%emt 0:00:07]} Rd5 {[%emt 0:01:24]} 38. Nd3 {[%emt 0:02:02]} Bg5 {[%emt 0:01:29]} 39. Be1 {[%emt 0:00:34]} Rd6 {[%emt 0:00:56]} 40. Ba5 {[%emt 0:00:00]} Rc6 {[%emt 0:00:00]} 41. Ne5 {[%emt 0:11:04]} Re6 {[%emt 0:03:15]} 42. Rb8+ {[%emt 0:02:37]} Kh7 {[%emt 0:00:14]} 43. Nd3 {[%emt 0:02:39]} Rc6 {[%emt 0:02:18]} 44. Ne5 {[%emt 0:00:56]} Re6 {[%emt 0:00:10]} 45. Nd7 {[%emt 0:00:07]} Rc6 {[%emt 0:05:43]} 46. Nf8+ {[%emt 0:00:28]} Kg8 {[%emt 0:00:09]} 47. Ng6+ {[%emt 0:00:33]} Kh7 {[%emt 0:00:20]} 48. Nf8+ {[%emt 0:00:02]} Kg8 {[%emt 0:00:07]} 49. Ne6+ {[%emt 0:00:06]} Kf7 {[%emt 0:01:44]} 50. Nxg5+ {[%emt 0:00:05]} hxg5 {[%emt 0:00:04]} 51. Rb7+ {[%emt 0:00:55]} Ke6 {[%emt 0:02:39]} 52. Rxg7 {[%emt 0:00:09]} Kf5 {[%emt 0:01:54]} 53. Kf1 {[%emt 0:00:34]} c4 {[%emt 0:00:19]} 54. bxc4 {[%emt 0:00:07]} Rxc4 {[%emt 0:00:02]} 55. Bd2 {[%emt 0:00:16]} Ke4 {[%emt 0:02:08]} 56. Ke2 {[%emt 0:00:06]} d3+ {[%emt 0:00:30]} 57. Ke1 {[%emt 0:00:41]} Ra4 {[%emt 0:01:28]} 58. Re7+ {[%emt 0:00:06]} Kf5 {[%emt 0:01:51]} 59. Be3 {[%emt 0:00:38]} a5 {[%emt 0:01:01]} 60. Kd2 {[%emt 0:00:12]} Ra3 {[%emt 0:00:03]} 61. Rd7 {[%emt 0:00:17]} a4 {[%emt 0:00:13]} 62. Rd4 {[%emt 0:00:29]} Ra1 {[%emt 0:01:23]} 63. Rxd3 {[%emt 0:01:06]} g4 {[%emt 0:00:50]} 64. Rd5+ {[%emt 0:00:11]} Ke6 {[%emt 0:00:24]} 65. Rg5 {[%emt 0:00:21]} Rg1 {[%emt 0:00:19]} 66. Bf4 {[%emt 0:00:49]} a3 {[%emt 0:00:48]} 67. Ra5 {[%emt 0:00:06]} Ra1 {[%emt 0:00:24]} 68. Bg3 {[%emt 0:00:14]} Kd7 {[%emt 0:00:08]} 69. Ra6 {[%emt 0:00:10]} 1-0

[Event "Montenegro Festival Mix-01 2021"]
[Site "Podgorica"]
[Date "2021.03.24"]
[Round "8.2"]
[White "Tomic, Aleksandar"]
[Black "Delchev, Aleksander"]
[Result "*"]
[ECO "D52"]
[WhiteElo "2360"]
[BlackElo "2526"]
[Annotator "RC"]
[PlyCount "31"]
[EventDate "2021.02.26"]
[EventType "swiss"]
[EventCountry "MNE"]
[SourceTitle "playchess.com"]
[Source "ChessBase"]
[SourceQuality "1"]
[TimeControl "40/5400+30:900+30"]

1. d4 {[%emt 0:14:24]} Nf6 {[%emt 0:01:47]} 2. c4 {[%emt 0:02:20]} e6 {[%emt 0:00:03]} 3. Nf3 {[%emt 0:00:18]} d5 {[%emt 0:00:29]} 4. Nc3 {[%emt 0:00:26]} c6 {[%emt 0:00:17]} 5. Bg5 {[%emt 0:00:36]} Nbd7 {[%emt 0:00:05]} 6. e3 {[%emt 0:00:31]} Qa5 {[%emt 0:00:05]} 7. cxd5 {[%emt 0:00:39]} Nxd5 {[%emt 0:00:07]} 8. Qb3 {[%emt 0:00:28]} Bb4 {[%emt 0:23:01]} 9. Rc1 {[%emt 0:00:31]} h6 {[%emt 0:06:18]} 10. Bh4 {[%emt 0:00:30]} c5 {[%emt 0:00:06]} 11. a3 {[%emt 0:04:56]} Bxc3+ {[%emt 0:00:11]} 12. bxc3 {[%emt 0:00:08]} cxd4 {[%emt 0:01:07]} 13. exd4 {[%emt 0:00:48]} O-O {[%emt 0:00:06]} 14. Bg3 {[%emt 0:02:04]} N7f6 {[%emt 0:05:45]} 15. Bd3 {[%emt 0:04:11]} Nh5 {[%emt 0:01:07]} 16. O-O {[%emt 1:05:10]} *

[Event "Montenegro Festival Mix-01 2021"]
[Site "Podgorica"]
[Date "2021.03.25"]
[Round "9.8"]
[White "Vujovic, Savo"]
[Black "Sukovic, Andrej"]
[Result "1/2-1/2"]
[ECO "E99"]
[WhiteElo "2187"]
[BlackElo "2282"]
[Annotator "RC"]
[PlyCount "96"]
[EventDate "2021.02.26"]
[EventType "swiss"]
[EventCountry "MNE"]
[SourceTitle "playchess.com"]
[Source "ChessBase"]
[SourceQuality "1"]
[TimeControl "40/5400+30:900+30"]

1. d4 {[%emt 0:00:00]} Nf6 {[%emt 0:00:00]} 2. c4 {[%emt 0:00:00]} g6 {[%emt 0:00:00]} 3. Nc3 {[%emt 0:00:05]} Bg7 {[%emt 0:00:00]} 4. e4 {[%emt 0:00:05]} d6 {[%emt 0:00:05]} 5. Nf3 {[%emt 0:00:12]} O-O {[%emt 0:00:09]} 6. Be2 {[%emt 0:00:03]} e5 {[%emt 0:01:43]} 7. O-O {[%emt 0:00:08]} Nc6 {[%emt 0:04:00]} 8. d5 {[%emt 0:00:21]} Ne7 {[%emt 0:00:08]} 9. Ne1 {[%emt 0:00:12]} Nd7 {[%emt 0:00:08]} 10. Be3 {[%emt 0:00:06]} f5 {[%emt 0:00:06]} 11. f3 {[%emt 0:00:02]} f4 {[%emt 0:00:10]} 12. Bf2 {[%emt 0:00:05]} g5 {[%emt 0:00:12]} 13. Nb5 {[%emt 0:00:52]} Nf6 {[%emt 0:08:01]} 14. Nxa7 {[%emt 0:03:03]} Bd7 {[%emt 0:01:03]} 15. Nb5 {[%emt 0:09:28]} g4 {[%emt 0:00:00]} 16. Nd3 {[%emt 0:03:03]} Ng6 {[%emt 0:01:33]} 17. Qe1 {[%emt 0:00:57]} gxf3 {[%emt 0:12:11]} 18. Bxf3 {[%emt 0:01:38]} Ng4 {[%emt 0:00:08]} 19. Kh1 {[%emt 0:07:13]} Kh8 {[%emt 0:06:25]} 20. Qe2 {[%emt 0:21:12]} Qc8 {[%emt 0:15:12]} 21. a4 {[%emt 0:07:28]} Bh6 {[%emt 0:05:25]} 22. Na7 {[%emt 0:02:47]} Nxf2+ {[%emt 0:01:07]} 23. Qxf2 {[%emt 0:00:06]} Qd8 {[%emt 0:05:32]} 24. Nb5 {[%emt 0:06:59]} Rg8 {[%emt 0:03:52]} 25. c5 {[%emt 0:02:56]} Bf8 {[%emt 0:00:28]} 26. cxd6 {[%emt 0:02:03]} Bxd6 {[%emt 0:05:14]} 27. Nc5 {[%emt 0:01:52]} Bc8 {[%emt 0:01:55]} 28. Ne6 {[%emt 0:01:23]} Bxe6 {[%emt 0:01:35]} 29. dxe6 {[%emt 0:00:05]} Nh4 {[%emt 0:01:07]} 30. Rfd1 {[%emt 0:01:13]} Qe7 {[%emt 0:04:15]} 31. Rac1 {[%emt 0:01:56]} Rad8 {[%emt 0:08:44]} 32. Rg1 {[%emt 0:14:07]} Nxf3 {[%emt 0:05:17]} 33. gxf3 {[%emt 0:00:12]} Rxg1+ {[%emt 0:00:09]} 34. Qxg1 {[%emt 0:00:12]} Qxe6 {[%emt 0:00:10]} 35. Nxc7 {[%emt 0:05:33]} Qh3 {[%emt 0:00:26]} 36. Nd5 {[%emt 0:01:16]} Qxf3+ {[%emt 0:00:29]} 37. Qg2 {[%emt 0:00:04]} Qh5 {[%emt 0:03:02]} 38. Rg1 {[%emt 0:02:05]} Qf7 {[%emt 0:00:12]} 39. b4 {[%emt 0:00:00]} Be7 {[%emt 0:04:25]} 40. a5 {[%emt 0:00:00]} Rf8 {[%emt 0:00:00]} 41. Qf3 {[%emt 0:06:04]} Bd6 {[%emt 0:03:19]} 42. b5 {[%emt 0:03:50]} Bc5 {[%emt 0:00:49]} 43. Rg5 {[%emt 0:01:07]} Bd4 {[%emt 0:01:02]} 44. Qg4 {[%emt 0:02:02]} f3 {[%emt 0:04:04]} 45. Rf5 {[%emt 0:00:41]} f2 {[%emt 0:00:41]} 46. Rxf7 {[%emt 0:05:18]} Rxf7 {[%emt 0:00:10]} 47. Qc8+ {[%emt 0:00:10]} Kg7 {[%emt 0:00:04]} 48. Qg4+ {[%emt 0:00:17]} Kh8 {[%emt 0:00:05]} 1/2-1/2